lending/lending_fUSD_20260209
["ID","MTS","AMOUNT","RATE_DAILY","PERIOD"]
[404871344,1770634245787,-500.0,0.00038798,30]
[404871345,1770634245797,-500.0,0.00038798,30]
[404871346,1770634245807,-500.0,0.00038798,30]
[404871347,1770634245818,-500.0,0.00038798,30]
[404871348,1770634245828,-500.0,0.00038798,30]
[404871349,1770634245839,-419.41964065,0.00038798,30]
[404871350,1770634245854,-80.58035935,0.00038798,30]
[404871351,1770634245863,-483.89573753,0.00038798,30]
[404871352,1770634245872,-300.0,0.00038798,4]
[404871353,1770634245881,-500.0,0.00038899,60]
[404871354,1770634245890,-500.0,0.00038899,60]
[404871355,1770634245899,-500.0,0.00038899,60]
[404871356,1770634245908,-500.0,0.00038899,60]
[404871357,1770634245918,-306.74781939,0.00038899,60]
[404871358,1770634245927,-500.0,0.00038899,60]
[404871359,1770634245936,-500.0,0.00038899,60]
[404871360,1770634245945,-500.0,0.00038899,60]
[404871362,1770634245956,-500.0,0.00038899,60]
[404871364,1770634245965,-519.87500599,0.00038899,60]
[404871365,1770634245974,-1050.047,0.00038899,53]
[404871366,1770634245984,-500.0,0.00038899,60]
[404871367,1770634245997,-500.0,0.00038899,60]
[404871368,1770634246006,-500.0,0.00038899,60]
[404871369,1770634246017,-500.0,0.00038899,60]
[404871370,1770634246027,-500.0,0.00038899,60]
[404871371,1770634246040,-500.0,0.00038899,60]
[404871372,1770634246052,-500.0,0.00038899,60]
[404871373,1770634246062,-500.0,0.00038899,60]
[404871374,1770634246071,-500.0,0.00038899,60]
[404871375,1770634246081,-500.0,0.00038899,60]
[404871376,1770634246089,-500.0,0.00038899,60]
[404871377,1770634246099,-500.0,0.00038899,60]
[404871378,1770634246108,-500.0,0.00038899,60]
[404871379,1770634246117,-500.0,0.00038899,60]
[404871380,1770634246127,-20.45407773,0.000389,2]
[404871381,1770634246139,-479.54592227,0.000389,2]
[404871382,1770634246148,-175.52213451,0.000389,12]
[404871383,1770634246158,-487.0,0.000389,2]
[404871384,1770634246167,-487.0,0.000389,2]
[404871385,1770634246176,-487.0,0.000389,2]
[404871386,1770634246185,-945.16,0.000389,2]
[404871387,1770634246194,-231.73,0.00039,30]
[404871388,1770634246204,-2882.49,0.00039,2]
[404871389,1770634246213,-166.66,0.00039086,30]
[404871390,1770634246223,-1599.05470882,0.00039161,2]
[404871391,1770634246232,-892.42038529,0.0003925,2]
[404871392,1770634246246,-173.96,0.00039477,2]
[404871393,1770634246255,-450.25,0.0003956,2]
[404871394,1770634246266,-514.45,0.00039711,120]
[404871395,1770634246275,-1599.05470882,0.00039722,2]
[404871396,1770634246284,-2036.62598011,0.00039731,2]
[404871397,1770634246294,-892.42038529,0.000398,2]
[404871398,1770634246303,-166.66,0.0003986,30]
[404871399,1770634246312,-226.04,0.00040111,120]
[404871400,1770634246321,-171.42,0.00040282,7]
[404871401,1770634246330,-1599.05470882,0.00040283,15]
[404871402,1770634246340,-892.42038529,0.0004035,15]
[404871403,1770634246350,-166.66,0.00040634,30]
[404871404,1770634246359,-1599.05470882,0.00040844,15]
[404871405,1770634246368,-2036.62598011,0.00040862,2]
[404871406,1770634246377,-892.42038529,0.000409,15]
[404871407,1770634246386,-500.0,0.00041058,2]
[404871408,1770634246395,-364.0,0.00041387,5]
[404871409,1770634246404,-1599.05470882,0.00041406,15]
[404871410,1770634246415,-892.42038529,0.0004145,15]
[404871411,1770634246425,-214.82796553,0.00041478,120]
[404871412,1770634246435,-3502.0912824,0.00041502,2]
[404871413,1770634246446,-165.88513622,0.00041959,5]
[404871414,1770634246456,-1599.05470882,0.00041967,15]
[404871415,1770634246466,-2036.62598011,0.00041994,2]
[404871416,1770634246475,-892.42038529,0.00042,15]
[404871417,1770634246485,-1000.0,0.0004216,2]
[404871418,1770634246494,-6386.59,0.000425,120]
[404871419,1770634246505,-1599.05470882,0.00042528,15]
[404871420,1770634246514,-892.42038529,0.0004255,15]
[404871421,1770634246523,-237.8504,0.000426,120]
[404871422,1770634246533,-1000.0,0.000426,2]
[404871423,1770634246542,-88407.51274571,0.000426,2]
[404871424,1770634246555,-11509.16251938,0.000426,2]
[404871425,1770634247304,151.0,0.00014634,2]
[404871449,1770635431604,-495.0,0.00032616,2]
[404871450,1770635431614,-250.0,0.00032616,2]
[404871451,1770635431623,-511.7047,0.00032616,2]
[404871452,1770635431634,-250.0,0.00035878,2]
[404871453,1770635431645,-252.38748138,0.00035878,2]
[404871454,1770635431655,-455.57,0.00037576,2]
[404871455,1770635431665,-227.45,0.00037856,2]
[404871456,1770635431675,-160.0,0.00038037,2]
[404871457,1770635431684,-198.85676142,0.000382,2]
[404871458,1770635431694,-176.75618032,0.000382,7]
[404871459,1770635431704,-678.87532672,0.000382,2]
[404871460,1770635431713,-195.0,0.0003823,120]
[404871461,1770635431722,-198.8567614,0.0003825,2]
[404871462,1770635431732,-150.0,0.00038273,30]
[404871463,1770635431741,-158.87244754,0.0003829,2]
[404871464,1770635431751,-153.58,0.0003829,2]
[404871465,1770635431759,-315.98927011,0.00038299,2]
[404871466,1770635431768,-400.0,0.00038299,5]
[404871467,1770635431778,-1466.0,0.00038299,5]
[404871468,1770635431787,-2022.42889972,0.000383,2]
[404871469,1770635431796,-455.2231,0.000383,2]
[404871470,1770635431806,-1097.34793938,0.000383,2]
[404871471,1770635431815,-198.8567614,0.000383,2]
[404871472,1770635431824,-33015.25914572,0.000383,2]
[404871473,1770635431836,-2279.85668093,0.000383,2]
[404871474,1770635431847,-4452.66369481,0.000383,2]
[404871477,1770635437532,-200.0,0.00038137,2]
[404871478,1770635437545,-1208387.8708336,0.000383,2]
[404871479,1770635437636,-28967.65758099,0.000383,2]
[404871480,1770635437691,-301.76454383,0.000383,2]
[404871613,1770635439677,-1421322.95785393,0.000383,2]
[404871614,1770635439691,-68809.0,0.000383,2]
[404871615,1770635439728,-305.54069115,0.000383,2]
[404871616,1770635439886,-347.053942,0.000383,2]
[404871710,1770635443173,-5754.27247501,0.000383,2]
[404871714,1770635444164,-1908.95357177,0.000383,2]
[404871715,1770635444218,-8432.85403011,0.000383,2]
[404871716,1770635444249,-910.38769214,0.000383,2]
[404871717,1770635444267,-613.7662963,0.000383,2]
[404871718,1770635444279,-843.08015721,0.000383,2]
[404871740,1770635445481,-3447.85,0.000383,2]
[404871741,1770635445588,-7750.0,0.000383,2]
[404871742,1770635445643,-12703.48655946,0.000383,2]
[404871743,1770635445654,-85663.10741045,0.000383,2]
[404871744,1770635445665,-563.43525296,0.000383,2]
[404871745,1770635445676,-828.72,0.000383,2]
[404872089,1770636188850,6400.267039,0.00035,30]
[404872090,1770636307658,195.0,0.00033014,120]
[404872091,1770636307803,195.0,0.00033253,120]
[404872092,1770636361238,300.0,0.00017999,2]
[404872094,1770636393157,160.144,0.00035616,30]
[404872095,1770636412011,5000.00710871,0.000162,5]
[404872096,1770636421744,300.0,0.00017999,2]
[404872100,1770636555664,166.66,0.00033572,30]
[404872101,1770636555970,166.66,0.00034279,30]
[404872102,1770636556363,166.66,0.00034985,30]
[404872103,1770636576682,4022.51775056,0.0001799,2]
[404872104,1770636601211,1200.0,0.00017999,2]
[404872114,1770636631704,-510.78051524,0.00018,2]
[404872115,1770636631715,-926.05527075,0.00018,2]
[404872116,1770636631727,-2152.66125016,0.00018,2]
[404872117,1770636631742,-2062.13091084,0.00018,2]
[404872118,1770636631757,-9051.86704959,0.00018,2]
[404872119,1770636631771,-2579.82837852,0.00018,2]
[404872120,1770636631786,-4554.73846656,0.00018,2]
[404872121,1770636631797,-3197.1583477,0.00018,2]
[404872122,1770636631809,-2701.61761818,0.00018,2]
[404872123,1770636631832,-413.403511,0.00018,2]
[404872124,1770636631844,-40456.16428608,0.00018,2]
[404872125,1770636631854,-304.0,0.00018,2]
[404872126,1770636631864,-482.3626455,0.00018134,2]
[404872127,1770636631873,-482.3626455,0.00018587,2]
[404872128,1770636631883,-1680.0,0.00019735,2]
[404872129,1770636631892,-250.0,0.000198,2]
[404872130,1770636631902,-250.0,0.000198,2]
[404872131,1770636631912,-196.24403011,0.000198,2]
[404872132,1770636631921,-250.0,0.000198,2]
[404872133,1770636631931,-4008.46332471,0.0001999,2]
[404872134,1770636631940,-543.679711,0.00022,2]
[404872135,1770636631949,-250.0,0.00022447,2]
[404872136,1770636631959,-1066.36987995,0.000241,2]
[404872137,1770636631969,-1340.73709991,0.000248,2]
[404872138,1770636631978,-2046.35908505,0.00026096,2]
[404872139,1770636631988,-2751.98107019,0.00027392,2]
[404872140,1770636631998,-3457.60305533,0.00028688,2]
[404872141,1770636632007,-4163.22504047,0.00029984,2]
[404872142,1770636632019,-187.55,0.00030013,2]
[404872143,1770636632028,-875.12792582,0.0003013,2]
[404872144,1770636632037,-4868.8470256,0.00031281,2]
[404872148,1770636632268,-5574.46901074,0.00032577,2]
[404872149,1770636632278,-5989.02192701,0.00033873,2]
[404872150,1770636632288,-1073.7,0.0003466,2]
[404872151,1770636632297,-6218.34907218,0.00035169,2]
[404872152,1770636632306,-166.66,0.00035692,30]
[404872153,1770636632315,-166.66,0.00036399,30]
[404872154,1770636632325,-6482.95731661,0.00036465,2]
[404872155,1770636632334,-54.2441022,0.00036492,2]
[404872156,1770636632346,-306.53132105,0.00036492,2]
[404872157,1770636632356,-166.66,0.00037106,30]
[404872158,1770636632365,-1000.0,0.00037607,2]
[404872159,1770636632375,-6677.00336252,0.00037761,2]
[404872160,1770636632384,-284.39034309,0.00037898,2]
[404872161,1770636632393,-1064.25196052,0.00037898,2]
[404872162,1770636632402,-223.87039986,0.00037898,2]
[404872163,1770636632411,-4639.13974369,0.00037898,2]
[404872164,1770636632423,-316.49225433,0.00037898,2]
[404872165,1770636632432,-797.98,0.00037988,2]
[404872166,1770636632441,-797.98,0.00037988,2]
[404872167,1770636632451,-797.98,0.00037988,2]
[404872168,1770636632460,-797.98,0.00037988,2]
[404872169,1770636632470,-797.98,0.00037988,2]
[404872170,1770636632479,-500.0,0.00037997,15]
[404872171,1770636632488,-218.84329844,0.00037997,15]
[404872172,1770636632497,-35.4867156,0.00037997,15]
[404872173,1770636632515,-141.98669759,0.00037997,15]
[404872174,1770636632525,-500.0,0.00037997,15]
[404872175,1770636632534,-271.24649822,0.00037997,15]
[404872176,1770636632544,-167.45602324,0.00037997,15]
[404872177,1770636632554,-574.08388385,0.00037997,15]
[404872178,1770636632563,-500.0,0.00037997,15]
[404872179,1770636632573,-500.0,0.00037997,15]
[404872180,1770636632582,-500.0,0.00037997,15]
[404872181,1770636632591,-500.0,0.00037997,15]
[404872182,1770636632601,-500.0,0.00037997,15]
[404872183,1770636632610,-500.0,0.00037997,15]
[404872184,1770636632619,-500.0,0.00037997,15]
[404872185,1770636632628,-500.0,0.00037997,15]
[404872186,1770636632637,-200.55808284,0.00037997,15]
[404872187,1770636632647,-500.0,0.00037997,15]
[404872188,1770636632657,-500.0,0.00037997,15]
[404872189,1770636632667,-405.24619285,0.00037997,15]
[404872190,1770636632679,-94.75380715,0.00037997,15]
[404872191,1770636632689,-195.30262214,0.00037997,15]
[404872192,1770636632906,-304.69737786,0.00037997,15]
[404872193,1770636632915,-299.14497811,0.00037997,15]
[404872194,1770636632927,-200.85502189,0.00037997,15]
[404872195,1770636632936,-500.0,0.00037997,15]
[404872196,1770636632946,-171.81028855,0.00037997,15]
[404872197,1770636632957,-328.18971145,0.00037997,15]
[404872198,1770636632967,-268.42340511,0.00037997,15]
[404872201,1770636637758,-987.61314546,0.00037897,2]
[404872202,1770636637769,-231.57659489,0.00037997,15]
[404872203,1770636637780,-500.0,0.00037997,15]
[404872204,1770636637789,-500.0,0.00037997,15]
[404872205,1770636637799,-500.0,0.00037997,15]
[404872206,1770636637809,-500.0,0.00037997,15]
[404872207,1770636637818,-500.0,0.00037997,15]
[404872208,1770636637827,-500.0,0.00037997,15]
[404872209,1770636637836,-500.0,0.00037997,15]
[404872210,1770636637845,-500.0,0.00037997,15]
[404872211,1770636637855,-500.0,0.00037997,15]
[404872212,1770636637865,-500.0,0.00037997,15]
[404872213,1770636637874,-500.0,0.00037997,15]
[404872214,1770636637883,-300.0,0.00037997,15]
[404872215,1770636637892,-500.0,0.00037998,3]
[404872216,1770636637902,-487.0,0.00037998,2]
[404872217,1770636637911,-908.94,0.00037998,2]
[404872218,1770636637921,-12584.8415,0.00037999,2]
[404872219,1770636637930,-840.037,0.00038098,50]
[404872220,1770636637939,-297.03,0.00038098,14]
[404872221,1770636637948,-5848.2301,0.000381,2]
[404872222,1770636637958,-618313.3332,0.000382,2]
[404872223,1770636637968,-165.85,0.000382,2]
[404872224,1770636637977,-500.0,0.00038299,60]
[404872226,1770636637987,-500.0,0.00038299,60]
[404872227,1770636637996,-500.0,0.00038299,30]
[404872228,1770636638005,-500.0,0.00038299,30]
[404872229,1770636638014,-297.03,0.00038372,30]
[404872230,1770636638024,-150.0,0.0003838,2]
[404872231,1770636638034,-3108.8875145,0.00038442,2]
[404872233,1770636638044,-15013.8804559,0.00038442,2]
[404872234,1770636638054,-500.0,0.00038444,2]
[404872235,1770636638063,-587.75,0.00038444,2]
[404872236,1770636638072,-1852.42,0.00038444,2]
[404872237,1770636638081,-576.95,0.00038444,2]
[404872238,1770636638090,-284.39034302,0.0003852,2]
[404872239,1770636638099,-150.0,0.00038526,5]
[404872240,1770636638108,-150.0,0.00038581,5]
[404872241,1770636638117,-150.0,0.00038636,5]
[404872242,1770636638126,-297.05,0.00038646,30]
[404872243,1770636638135,-150.0,0.0003869,5]
[404872244,1770636638144,-214.21,0.000387,2]
[404872245,1770636638154,-150.0,0.00038745,5]
[404872246,1770636638164,-250.0,0.000388,5]
[404872247,1770636638173,-164.84805888,0.000388,5]
[404872248,1770636638182,-225.66489794,0.000388,5]
[404872249,1770636638191,-500.0,0.000388,5]
[404872250,1770636638200,-500.0,0.000388,5]
[404872251,1770636638210,-534.40264883,0.000388,2]
[404872252,1770636638219,-500.0,0.000388,5]
[404872253,1770636638228,-164.28025717,0.000388,5]
[404872254,1770636638239,-168.27709039,0.000388,5]
[404872255,1770636638249,-500.0,0.000388,5]
[404872256,1770636638258,-500.0,0.000388,5]
[404872257,1770636638268,-164.04927884,0.000388,5]
[404872258,1770636638278,-500.0,0.000388,3]
[404872259,1770636638287,-239.74479814,0.000388,5]
[404872260,1770636638297,-500.0,0.000388,5]
[404872261,1770636638306,-501.83608545,0.000388,5]
[404872262,1770636638315,-500.0,0.000388,5]
[404872263,1770636638325,-500.0,0.000388,5]
[404872264,1770636638335,-500.0,0.000388,5]
[404872265,1770636638344,-200.41863357,0.000388,5]
[404872266,1770636638354,-500.0,0.000388,5]
[404872267,1770636638363,-2000.0,0.000389,2]
[404872268,1770636638372,-1699.55,0.00038955,2]
[404872269,1770636638381,-6976.8927062,0.00039057,2]
[404872270,1770636638391,-44211.41935952,0.000391,120]
[404872271,1770636638400,-284.39034302,0.00039143,2]
[404872272,1770636638410,-278.9,0.00039246,120]
[404872273,1770636638420,-1000.0,0.00039356,120]
[404872274,1770636638429,-150.0,0.00039463,2]
[404872275,1770636638438,-284.39034302,0.00039765,2]
[404872276,1770636638448,-2889.16956777,0.0004,14]
[404872277,1770636638458,-500.0,0.00040185,60]
[404872278,1770636638467,-500.0,0.00040185,30]
[404872279,1770636638477,-166.86,0.00040185,2]
[404872280,1770636638486,-200.0,0.00040185,2]
[404872281,1770636638496,-46588.56,0.00040185,2]
[404872282,1770636638505,-230.89379757,0.00040215,15]
[404872283,1770636638514,-7135.65765286,0.00040353,2]
[404872284,1770636638523,-284.39034302,0.00040388,15]
[404872285,1770636638532,-1325.21,0.00040455,2]
[404872286,1770636638541,-3256.0,0.00040455,2]
[404872287,1770636638550,-1000.0,0.00040548,2]
[404872288,1770636638560,-350.0,0.00040639,2]
[404872289,1770636638569,-284.39034302,0.0004101,15]
[404872290,1770636638578,-350.0,0.0004102,2]
[404872291,1770636638587,-20000.0,0.00041096,120]
[404872292,1770636638597,-165.85,0.000411,30]
[404872293,1770636638606,-1064.25196052,0.00041155,2]
[404872294,1770636638616,-4955.63199802,0.00041155,2]
[404872295,1770636638625,-350.0,0.00041349,2]
[404872296,1770636638634,-5000.0,0.00041387,120]
[404872297,1770636638644,-152.0,0.00041537,3]
[404872298,1770636638653,-350.0,0.00041558,2]
[404872299,1770636638663,-7219.44,0.000416,120]
[404872300,1770636638672,-7219.44,0.000416,120]
[404872301,1770636638681,-7219.44,0.000416,120]
[404872302,1770636638695,-284.39034302,0.00041633,15]
[404872303,1770636638704,-7470.8280958,0.00041649,2]
[404872304,1770636638713,-3127.0,0.00041685,7]
[404872305,1770636638723,-9632.37984557,0.00042,120]
[404872306,1770636638736,-5291.09490434,0.00042,120]
[404872307,1770636638745,-87907.89893236,0.00042,120]
[404872308,1770636638754,-350.0,0.00042074,3]
[404872309,1770636638763,-37525.34115863,0.00042121,120]
[404872310,1770636638772,-151.0,0.00042121,7]
[404872311,1770636638782,-151.0,0.00042121,7]
[404872312,1770636638791,-151.0,0.00042121,7]
[404872313,1770636638801,-433.80662,0.0004217,120]
[404872314,1770636638813,-284.39034302,0.00042255,15]
[404872315,1770636638822,-433.80662,0.0004227,120]
[404872316,1770636638832,-1000.0,0.00042308,2]
[404872317,1770636638841,-433.80662,0.0004237,120]
[404872318,1770636638851,-350.0,0.00042463,3]
[404872319,1770636638861,-433.80662,0.0004247,120]
[404872320,1770636638871,-158.87244755,0.0004249,7]
[404872321,1770636638880,-5000.0,0.000425,120]
[404872322,1770636638890,-111438.39949896,0.000425,120]
[404872323,1770636638899,-151.0,0.000425,120]
[404872324,1770636638909,-433.80662,0.0004257,120]
[404872325,1770636638918,-183.194782,0.00042599,120]
[404872326,1770636638928,-178.210169,0.00042599,120]
[404872327,1770636638937,-319.699733,0.00042599,120]
[404872328,1770636638946,-319.699733,0.00042599,120]
[404872329,1770636638956,-319.699733,0.00042599,120]
[404872330,1770636638966,-319.699733,0.00042599,120]
[404872331,1770636638975,-151.0,0.00042599,120]
[404872332,1770636638984,-157.52005166,0.00042599,120]
[404872333,1770636638994,-1124.677841,0.00042599,120]
[404872334,1770636639003,-1124.677841,0.00042599,120]
[404872335,1770636639013,-1124.677841,0.00042599,120]
[404872336,1770636639023,-1124.677841,0.00042599,120]
[404872337,1770636639032,-151.0,0.00042599,120]
[404872338,1770636639042,-163.149172,0.00042599,120]
[404872339,1770636639051,-250.0,0.00042599,120]
[404872340,1770636639061,-327.68260501,0.00042599,120]
[404872341,1770636639071,-500.0,0.00042599,120]
[404872342,1770636639084,-250.0,0.00042599,120]
[404872343,1770636639093,-250.0,0.00042599,120]
[404872344,1770636639103,-269.82892784,0.00042599,120]
[404872345,1770636639113,-250.0,0.00042599,120]
[404872346,1770636639123,-250.0,0.00042599,120]
[404872347,1770636639132,-500.0,0.00042599,120]
[404872348,1770636639142,-250.0,0.00042599,120]
[404872349,1770636639151,-250.0,0.00042599,120]
[404872350,1770636639160,-250.0,0.00042599,120]
[404872351,1770636639170,-250.0,0.00042599,120]
[404872352,1770636639179,-500.0,0.00042599,120]
[404872353,1770636639190,-500.0,0.00042599,120]
[404872354,1770636639200,-250.0,0.00042599,120]
[404872355,1770636639210,-250.0,0.00042599,120]
[404872356,1770636639219,-250.0,0.00042599,120]
[404872357,1770636639230,-500.0,0.00042599,120]
[404872358,1770636639239,-500.0,0.00042599,120]
[404872359,1770636639469,-250.0,0.00042599,120]
[404872360,1770636639482,-250.0,0.00042599,120]
[404872361,1770636639491,-250.0,0.00042599,120]
[404872362,1770636639501,-500.0,0.00042599,120]
[404872363,1770636639511,-500.0,0.00042599,120]
[404872364,1770636639521,-500.0,0.00042599,120]
[404872365,1770636639530,-250.0,0.00042599,120]
[404872366,1770636639540,-6888.0,0.00042599,120]
[404872367,1770636639550,-250.0,0.00042599,120]
[404872368,1770636639560,-500.0,0.00042599,120]
[404872369,1770636639569,-180.95729555,0.00042599,120]
[404872370,1770636639581,-500.0,0.00042599,120]
[404872371,1770636639593,-250.0,0.00042599,120]
[404872372,1770636639603,-250.0,0.00042599,120]
[404872373,1770636639613,-7142.856,0.00042599,120]
[404872374,1770636639623,-250.0,0.00042599,120]
[404872375,1770636639632,-500.0,0.00042599,120]
[404872376,1770636639641,-500.0,0.00042599,120]
[404872377,1770636639650,-250.0,0.00042599,120]
[404872378,1770636639659,-500.0,0.00042599,120]
[404872379,1770636639668,-250.0,0.00042599,120]
[404872380,1770636639678,-250.0,0.00042599,120]
[404872381,1770636639688,-500.0,0.00042599,120]
[404872382,1770636639699,-500.0,0.00042599,120]
[404872383,1770636639708,-500.0,0.00042599,120]
[404872384,1770636639718,-250.0,0.00042599,120]
[404872385,1770636639728,-250.0,0.00042599,120]
[404872386,1770636639742,-500.0,0.00042599,120]
[404872387,1770636639751,-500.0,0.00042599,120]
[404872388,1770636639760,-500.0,0.00042599,120]
[404872389,1770636639770,-250.0,0.00042599,120]
[404872390,1770636639781,-250.0,0.00042599,120]
[404872391,1770636639790,-500.0,0.00042599,120]
[404872392,1770636639803,-500.0,0.00042599,120]
[404872393,1770636639812,-500.0,0.00042599,120]
[404872394,1770636639822,-7681.20591386,0.00042599,120]
[404872395,1770636639831,-500.0,0.00042599,120]
[404872396,1770636639841,-500.0,0.00042599,120]
[404872397,1770636639850,-7965.41053268,0.00042599,120]
[404872398,1770636639860,-500.0,0.00042599,120]
[404872399,1770636639869,-5000.0,0.00042599,120]
[404872400,1770636639879,-8260.13072239,0.00042599,120]
[404872401,1770636639888,-500.0,0.00042599,120]
[404872402,1770636639897,-338.16119474,0.00042599,120]
[404872403,1770636639908,-8565.75555911,0.00042599,120]
[404872404,1770636639918,-9.39892499,0.00042599,120]
[404872405,1770636639933,-3172.03815437,0.00042599,120]
[404872406,1770636639943,-151.0,0.00042599,120]
[404872407,1770636639953,-8882.6885148,0.00042599,120]
[404872408,1770636639963,-151.0,0.00042599,120]
[404872409,1770636639973,-1146.21306342,0.00042599,120]
[404872410,1770636639989,-450.58499,0.00042599,120]
[404872411,1770636640003,-1674.77036001,0.00042599,120]
[404872412,1770636640016,-846.33812054,0.00042599,120]
[404872413,1770636640040,-2510.8565844,0.00042599,120]
[404872419,1770636640326,-616.0,0.00040455,2]
[404872420,1770636640336,-1052.8510257,0.00042599,120]
[404872421,1770636640363,-1529.73384578,0.00042599,120]
[404872422,1770636640374,-250.0,0.00042599,120]
[404872423,1770636640383,-151.0,0.00042599,120]
[404872424,1770636640400,-9552.16786547,0.00042599,120]
[404872425,1770636640412,-250.0,0.00042599,120]
[404872426,1770636640422,-151.0,0.00042599,120]
[404872427,1770636640432,-9905.5980765,0.00042599,120]
[404872428,1770636640442,-250.0,0.00042599,120]
[404872429,1770636640452,-151.0,0.00042599,120]
[404872430,1770636640462,-10272.10520533,0.00042599,120]
[404872431,1770636640471,-250.0,0.00042599,120]
[404872432,1770636640482,-151.0,0.00042599,120]
[404872433,1770636640492,-4355.14790097,0.00042599,120]
[404872434,1770636640502,-250.0,0.00042599,120]
[404872435,1770636640512,-151.0,0.00042599,120]
[404872436,1770636640523,-151.0,0.00042599,120]
[404872437,1770636640533,-250.0,0.00042599,120]
[404872438,1770636640543,-250.0,0.00042599,120]
[404872439,1770636640553,-151.0,0.00042599,120]
[404872440,1770636640562,-250.0,0.00042599,120]
[404872441,1770636640572,-250.0,0.00042599,120]
[404872442,1770636640582,-151.0,0.00042599,120]
[404872443,1770636640591,-259.48658918,0.00042599,120]
[404872444,1770636640602,-250.0,0.00042599,120]
[404872445,1770636640612,-520.0,0.00042599,120]
[404872446,1770636640622,-151.0,0.00042599,120]
[404872447,1770636640632,-250.0,0.00042599,120]
[404872448,1770636640642,-227.03952115,0.00042599,120]
[404872449,1770636640652,-240.17130849,0.00042599,120]
[404872450,1770636640661,-500.0,0.00042599,120]
[404872451,1770636640671,-250.0,0.00042599,120]
[404872452,1770636640680,-500.0,0.00042599,120]
[404872453,1770636640690,-250.0,0.00042599,120]
[404872454,1770636640699,-500.0,0.00042599,120]
[404872455,1770636640709,-250.0,0.00042599,120]
[404872456,1770636640719,-500.0,0.00042599,120]
[404872457,1770636640729,-250.0,0.00042599,120]
[404872458,1770636640742,-500.0,0.00042599,120]
[404872459,1770636640756,-250.0,0.00042599,120]
[404872460,1770636640773,-500.0,0.00042599,120]
[404872461,1770636640783,-250.0,0.00042599,120]
[404872462,1770636640793,-500.0,0.00042599,120]
[404872463,1770636640803,-500.0,0.00042599,120]
[404872464,1770636640812,-518.5,0.00042599,120]
[404872465,1770636640822,-500.0,0.00042599,120]
[404872466,1770636640831,-154.99970334,0.00042599,120]
[404872467,1770636640841,-500.0,0.00042599,120]
[404872468,1770636640851,-250.0,0.00042599,120]
[404872469,1770636640860,-250.0,0.00042599,120]
[404872470,1770636640870,-250.0,0.00042599,120]
[404872471,1770636640880,-151.0,0.000426,30]
[404872472,1770636640890,-218.0266776,0.000426,30]
[404872473,1770636640900,-2000.0,0.000426,2]
[404872474,1770636640910,-433.80662,0.0004267,120]
[404872475,1770636640920,-1048.94286654,0.0004274,7]
[404872476,1770636640930,-151.0,0.0004274,120]
[404872477,1770636640940,-3300.0,0.000428,120]
[404872478,1770636640950,-284.39034302,0.00042878,15]
[404872479,1770636640960,-7594.3119432,0.00042946,2]
[404872480,1770636640971,-160.87387984,0.00042999,120]
[404872481,1770636640981,-396.62522094,0.00042999,30]
[404872482,1770636640991,-131101.04668289,0.00043,120]
[404872483,1770636641001,-5200.0,0.00043,120]
[404872484,1770636641011,-154.208958,0.00043,120]
[404872485,1770636641022,-153.555616,0.00043,120]
[404872486,1770636641032,-153.375037,0.00043,120]
[404872487,1770636641042,-151.0,0.00043,120]